Workbook

Sheet Sales Trend Analysis
B3: Sales Trend Analysis
B4: For the Year 2009
C6: Q1 | E6: =LEFT(C6,LEN(C6)-1)&FIXED(CHOOSE(VALUE(RIGHT(C6,1)),2,3,4,1),0,TRUE) -> Q2 | G6: =LEFT(E6,LEN(E6)-1)&FIXED(CHOOSE(VALUE(RIGHT(E6,1)),2,3,4,1),0,TRUE) -> Q3 | I6: =LEFT(G6,LEN(G6)-1)&FIXED(CHOOSE(VALUE(RIGHT(G6,1)),2,3,4,1),0,TRUE) -> Q4 | K6: Totals
B7: Product 1
B8: Last Year's Sales | C8: $10,000 | E8: $12,000 | G8: $10,000 | I8: $12,000 | K8: =IF(SUM(C8:J8),SUM(C8:J8),"") -> $44,000
B9: This Year's Sales Goal | C9: $12,000 | E9: $15,000 | G9: $12,000 | I9: $16,000 | K9: =IF(SUM(C9:J9),SUM(C9:J9),"") -> $55,000
B10: This Year's Actual Sales | C10: $11,000 | E10: $17,000 | G10: $11,000 | I10: $18,000 | K10: =IF(SUM(C10:J10),SUM(C10:J10),"") -> $57,000
B11: Variance from Goal | C11: =IF(SUM(C8:C10),C10-C9,"") -> ($1,000) | D11: =IF(SUM(C8:C10),IF(C11<0,"U","F"),"") -> U | E11: =IF(SUM(E8:E10),E10-E9,"") -> $2,000 | F11: =IF(SUM(E8:E10),IF(E11<0,"U","F"),"") -> F | G11: =IF(SUM(G8:G10),G10-G9,"") -> ($1,000) | H11: =IF(SUM(G8:G10),IF(G11<0,"U","F"),"") -> U | I11: =IF(SUM(I8:I10),I10-I9,"") -> $2,000 | J11: =IF(SUM(I8:I10),IF(I11<0,"U","F"),"") -> F | K11: =IF(SUM(K8:K10),K10-K9,"") -> $2,000 | L11: =IF(SUM(K8:K10),IF(K11<0,"U","F"),"") -> F
B12: % Change since Last Yr | C12: =IF(SUM(C8:C10),(C10-C8)/C8,"") -> 10.0% | E12: =IF(SUM(E8:E10),(E10-E8)/E8,"") -> 41.7% | G12: =IF(SUM(G8:G10),(G10-G8)/G8,"") -> 10.0% | I12: =IF(SUM(I8:I10),(I10-I8)/I8,"") -> 50.0% | K12: =IF(SUM(K8:K10),(K10-K8)/K8,"") -> 29.5%
B14: Product 2
B15: Last Year's Sales | C15: $9,600 | E15: $10,000 | G15: $10,000 | I15: $9,700 | K15: =IF(SUM(C15:J15),SUM(C15:J15),"") -> $39,300
B16: This Year's Sales Goal | C16: $15,000 | E16: $15,000 | G16: $15,000 | I16: $15,000 | K16: =IF(SUM(C16:J16),SUM(C16:J16),"") -> $60,000
B17: This Year's Actual Sales | C17: $11,000 | E17: $17,000 | G17: $18,000 | I17: $11,000 | K17: =IF(SUM(C17:J17),SUM(C17:J17),"") -> $57,000
B18: Variance from Goal | C18: =IF(SUM(C15:C17),C17-C16,"") -> ($4,000) | D18: =IF(SUM(C15:C17),IF(C18<0,"U","F"),"") -> U | E18: =IF(SUM(E15:E17),E17-E16,"") -> $2,000 | F18: =IF(SUM(E15:E17),IF(E18<0,"U","F"),"") -> F | G18: =IF(SUM(G15:G17),G17-G16,"") -> $3,000 | H18: =IF(SUM(G15:G17),IF(G18<0,"U","F"),"") -> F | I18: =IF(SUM(I15:I17),I17-I16,"") -> ($4,000) | J18: =IF(SUM(I15:I17),IF(I18<0,"U","F"),"") -> U | K18: =IF(SUM(K15:K17),K17-K16,"") -> ($3,000) | L18: =IF(SUM(K15:K17),IF(K18<0,"U","F"),"") -> U
B19: % Change since Last Yr | C19: =IF(SUM(C15:C17),(C17-C15)/C15,"") -> 14.6% | E19: =IF(SUM(E15:E17),(E17-E15)/E15,"") -> 70.0% | G19: =IF(SUM(G15:G17),(G17-G15)/G15,"") -> 80.0% | I19: =IF(SUM(I15:I17),(I17-I15)/I15,"") -> 13.4% | K19: =IF(SUM(K15:K17),(K17-K15)/K15,"") -> 45.0%
B21: Product 3
B22: Last Year's Sales | C22: $31,000 | E22: $30,000 | G22: $31,000 | I22: $35,000 | K22: =IF(SUM(C22:J22),SUM(C22:J22),"") -> $127,000
B23: This Year's Sales Goal | C23: $35,000 | E23: $35,000 | G23: $35,000 | I23: $35,000 | K23: =IF(SUM(C23:J23),SUM(C23:J23),"") -> $140,000
B24: This Year's Actual Sales | C24: $41,000 | E24: $39,000 | G24: $28,000 | I24: $32,000 | K24: =IF(SUM(C24:J24),SUM(C24:J24),"") -> $140,000
B25: Variance from Goal | C25: =IF(SUM(C22:C24),C24-C23,"") -> $6,000 | D25: =IF(SUM(C22:C24),IF(C25<0,"U","F"),"") -> F | E25: =IF(SUM(E22:E24),E24-E23,"") -> $4,000 | F25: =IF(SUM(E22:E24),IF(E25<0,"U","F"),"") -> F | G25: =IF(SUM(G22:G24),G24-G23,"") -> ($7,000) | H25: =IF(SUM(G22:G24),IF(G25<0,"U","F"),"") -> U | I25: =IF(SUM(I22:I24),I24-I23,"") -> ($3,000) | J25: =IF(SUM(I22:I24),IF(I25<0,"U","F"),"") -> U | K25: =IF(SUM(K22:K24),K24-K23,"") -> $0 | L25: =IF(SUM(K22:K24),IF(K25<0,"U","F"),"") -> F
B26: % Change since Last Yr | C26: =IF(SUM(C22:C24),(C24-C22)/C22,"") -> 32.3% | E26: =IF(SUM(E22:E24),(E24-E22)/E22,"") -> 30.0% | G26: =IF(SUM(G22:G24),(G24-G22)/G22,"") -> -9.7% | I26: =IF(SUM(I22:I24),(I24-I22)/I22,"") -> -8.6% | K26: =IF(SUM(K22:K24),(K24-K22)/K22,"") -> 10.2%
B28: Product 4
B29: Last Year's Sales | C29: $10,000 | E29: $9,000 | G29: $12,000 | I29: $9,000 | K29: =IF(SUM(C29:J29),SUM(C29:J29),"") -> $40,000
B30: This Year's Sales Goal | C30: $13,000 | E30: $13,000 | G30: $13,000 | I30: $13,000 | K30: =IF(SUM(C30:J30),SUM(C30:J30),"") -> $52,000
B31: This Year's Actual Sales | C31: $9,000 | E31: $9,000 | G31: $15,000 | I31: $9,700 | K31: =IF(SUM(C31:J31),SUM(C31:J31),"") -> $42,700
B32: Variance from Goal | C32: =IF(SUM(C29:C31),C31-C30,"") -> ($4,000) | D32: =IF(SUM(C29:C31),IF(C32<0,"U","F"),"") -> U | E32: =IF(SUM(E29:E31),E31-E30,"") -> ($4,000) | F32: =IF(SUM(E29:E31),IF(E32<0,"U","F"),"") -> U | G32: =IF(SUM(G29:G31),G31-G30,"") -> $2,000 | H32: =IF(SUM(G29:G31),IF(G32<0,"U","F"),"") -> F | I32: =IF(SUM(I29:I31),I31-I30,"") -> ($3,300) | J32: =IF(SUM(I29:I31),IF(I32<0,"U","F"),"") -> U | K32: =IF(SUM(K29:K31),K31-K30,"") -> ($9,300) | L32: =IF(SUM(K29:K31),IF(K32<0,"U","F"),"") -> U
B33: % Change since Last Yr | C33: =IF(SUM(C29:C31),(C31-C29)/C29,"") -> -10.0% | E33: =IF(SUM(E29:E31),(E31-E29)/E29,"") -> 0.0% | G33: =IF(SUM(G29:G31),(G31-G29)/G29,"") -> 25.0% | I33: =IF(SUM(I29:I31),(I31-I29)/I29,"") -> 7.8% | K33: =IF(SUM(K29:K31),(K31-K29)/K29,"") -> 6.8%
B35: Product 5
B36: Last Year's Sales | C36: $9,000 | E36: $9,000 | G36: $9,000 | I36: $9,000 | K36: =IF(SUM(C36:J36),SUM(C36:J36),"") -> $36,000
B37: This Year's Sales Goal | C37: $9,400 | E37: $9,400 | G37: $9,400 | I37: $9,400 | K37: =IF(SUM(C37:J37),SUM(C37:J37),"") -> $37,600
B38: This Year's Actual Sales | C38: $9,500 | E38: $9,600 | G38: $9,700 | I38: $9,800 | K38: =IF(SUM(C38:J38),SUM(C38:J38),"") -> $38,600
B39: Variance from Goal | C39: =IF(SUM(C36:C38),C38-C37,"") -> $100 | D39: =IF(SUM(C36:C38),IF(C39<0,"U","F"),"") -> F | E39: =IF(SUM(E36:E38),E38-E37,"") -> $200 | F39: =IF(SUM(E36:E38),IF(E39<0,"U","F"),"") -> F | G39: =IF(SUM(G36:G38),G38-G37,"") -> $300 | H39: =IF(SUM(G36:G38),IF(G39<0,"U","F"),"") -> F | I39: =IF(SUM(I36:I38),I38-I37,"") -> $400 | J39: =IF(SUM(I36:I38),IF(I39<0,"U","F"),"") -> F | K39: =IF(SUM(K36:K38),K38-K37,"") -> $1,000 | L39: =IF(SUM(K36:K38),IF(K39<0,"U","F"),"") -> F
B40: % Change since Last Yr | C40: =IF(SUM(C36:C38),(C38-C36)/C36,"") -> 5.6% | E40: =IF(SUM(E36:E38),(E38-E36)/E36,"") -> 6.7% | G40: =IF(SUM(G36:G38),(G38-G36)/G36,"") -> 7.8% | I40: =IF(SUM(I36:I38),(I38-I36)/I36,"") -> 8.9% | K40: =IF(SUM(K36:K38),(K38-K36)/K36,"") -> 7.2%
B42: Product 6
B43: Last Year's Sales | C43: $17,000 | E43: $19,000 | G43: $17,000 | I43: $17,000 | K43: =IF(SUM(C43:J43),SUM(C43:J43),"") -> $70,000
B44: This Year's Sales Goal | C44: $18,000 | E44: $18,000 | G44: $18,000 | I44: $18,000 | K44: =IF(SUM(C44:J44),SUM(C44:J44),"") -> $72,000
B45: This Year's Actual Sales | C45: $15,000 | E45: $15,000 | G45: $20,000 | I45: $21,000 | K45: =IF(SUM(C45:J45),SUM(C45:J45),"") -> $71,000
B46: Variance from Goal | C46: =IF(SUM(C43:C45),C45-C44,"") -> ($3,000) | D46: =IF(SUM(C43:C45),IF(C46<0,"U","F"),"") -> U | E46: =IF(SUM(E43:E45),E45-E44,"") -> ($3,000) | F46: =IF(SUM(E43:E45),IF(E46<0,"U","F"),"") -> U | G46: =IF(SUM(G43:G45),G45-G44,"") -> $2,000 | H46: =IF(SUM(G43:G45),IF(G46<0,"U","F"),"") -> F | I46: =IF(SUM(I43:I45),I45-I44,"") -> $3,000 | J46: =IF(SUM(I43:I45),IF(I46<0,"U","F"),"") -> F | K46: =IF(SUM(K43:K45),K45-K44,"") -> ($1,000) | L46: =IF(SUM(K43:K45),IF(K46<0,"U","F"),"") -> U
B47: % Change since Last Yr | C47: =IF(SUM(C43:C45),(C45-C43)/C43,"") -> -11.8% | E47: =IF(SUM(E43:E45),(E45-E43)/E43,"") -> -21.1% | G47: =IF(SUM(G43:G45),(G45-G43)/G43,"") -> 17.6% | I47: =IF(SUM(I43:I45),(I45-I43)/I43,"") -> 23.5% | K47: =IF(SUM(K43:K45),(K45-K43)/K43,"") -> 1.4%
